[Event "Moscow-Open 2021_A"]
[Site "Moscow, Russia"]
[Date "2021.02.23"]
[Round "4.4"]
[White "Makarian, Rudik"]
[Black "Suleymenov, Alisher"]
[Result "1-0"]
[ECO "A85"]
[WhiteElo "2458"]
[BlackElo "2440"]
[Annotator "zimin"]
[PlyCount "123"]
[EventDate "2021.??.??"]
[TimeControl "90+30"]
[WhiteClock "0:02:48"]
[BlackClock "0:00:55"]

{[%evp 0,40,33,32,75,24,31,44,66,43,17,20,40,-12,-18,-18,-17,-52,-45,-46,11,11,
21,44,139,-13,-13,-43,0,-36,9,9,4,-18,6,-5,20,9,8,7,42,0,54]} 1. d4 {[%emt 0:
00:00]} f5 {[%emt 0:00:00]} 2. c4 {[%emt 0:00:00]} Nf6 {[%emt 0:00:00]} 3. Nc3
{[%emt 0:00:00]} d6 {[%emt 0:00:00]} 4. Bg5 {[%emt 0:00:00]} Nbd7 {[%emt 0:00:
00]} 5. Qd3 {[%emt 0:00:00]} g6 {[%emt 0:00:00]} 6. h4 {[%emt 0:00:00]} h6 {
[%emt 0:00:00]} 7. Bxf6 {[%emt 0:00:00]} Nxf6 {[%emt 0:00:00]} 8. O-O-O {
[%emt 0:00:00]} Bg7 {[%emt 0:00:00]} 9. Nh3 {[%emt 0:00:00]} Be6 {[%emt 0:00:
00]} 10. Nf4 {[%emt 0:00:00]} Bf7 {[%emt 0:00:00]} 11. e4 {[%emt 0:00:00]} e5 {
[%emt 0:00:00]} 12. dxe5 {[%emt 0:00:00]} dxe5 {[%emt 0:00:00]} 13. Qe3 {
[%emt 0:00:00]} Qc8 {[%emt 0:00:00]} 14. exf5 {[%emt 0:00:00]} Qxf5 {[%emt 0:
00:00]} 15. Nfd5 {[%emt 0:00:00]} Nxd5 {[%emt 0:05:32]} 16. cxd5 {[%emt 0:00:
00]} O-O {[%emt 0:00:00]} 17. Bd3 {[%emt 0:00:00]} e4 {[%emt 0:00:00]} 18. Bxe4
{[%emt 0:00:00]} Qf6 {[%emt 0:00:00]} 19. g4 {[%emt 0:00:00]} Qa6 {[%emt 0:00:
00]} 20. Qd3 {[%emt 0:00:00]} Qb6 {[%emt 0:00:00]} 21. f3 {[%emt 0:00:00]} Rad8
{[%emt 0:00:00]} 22. Rd2 {[%emt 0:00:09]} Rd6 {[%emt 0:00:00]} 23. Rhd1 {
[%emt 0:02:46]} Qa5 {[%emt 0:00:00]} 24. Kb1 {[%emt 0:01:55]} Rb6 {[%emt 0:00:
00]} 25. Ne2 {[%emt 0:00:18]} c6 {[%emt 0:00:34]} 26. Nf4 {[%emt 0:02:48]} Qb4
{[%emt 0:03:42]} 27. Qc2 {[%emt 0:03:01]} Qd6 {[%emt 0:00:39]} 28. dxc6 {
[%emt 0:01:33]} Qxf4 {[%emt 0:04:12]} 29. cxb7 {[%emt 0:00:01]} Rxb2+ {[%emt 0:
00:26]} 30. Qxb2 {[%emt 0:00:05]} Bxb2 {[%emt 0:00:02]} 31. Rxb2 {[%emt 0:00:
04]} Be6 {[%emt 0:00:43]} 32. Rbd2 {[%emt 0:01:53]} Qc7 {[%emt 0:00:45]} 33.
Rc1 {[%emt 0:01:25]} Qe5 {[%emt 0:00:41]} 34. Rc6 {[%emt 0:00:29]} Kg7 {
[%emt 0:00:38]} 35. Rdd6 {[%emt 0:00:32]} Bf7 {[%emt 0:00:32]} 36. Rd7 {
[%emt 0:00:17]} Qb5+ {[%emt 0:00:21]} 37. Kc1 {[%emt 0:00:22]} Qf1+ {[%emt 0:
00:29]} 38. Rd1 {[%emt 0:01:02]} Qb5 {[%emt 0:00:29]} 39. Rc8 {[%emt 0:00:16]}
Re8 {[%emt 0:00:42]} 40. b8=Q {[%emt 0:00:28]} Qxb8 {[%emt 0:00:05]} 41. Rxb8 {
[%emt 0:00:02]} Rxb8 {[%emt 0:00:00]} 42. Rd7 {[%emt 0:00:04]} Kf6 {[%emt 0:00:
56]} 43. Rxa7 {[%emt 0:00:06]} Rb4 {[%emt 0:00:45]} 44. g5+ {[%emt 0:00:34]}
hxg5 {[%emt 0:00:01]} 45. hxg5+ {[%emt 0:00:04]} Ke6 {[%emt 0:00:02]} 46. Bd5+
{[%emt 0:00:12]} Kxd5 {[%emt 0:00:04]} 47. Rxf7 {[%emt 0:00:02]} Rh4 {[%emt 0:
01:32]} 48. Rf6 {[%emt 0:00:14]} Rh3 {[%emt 0:00:53]} 49. a4 {[%emt 0:01:22]}
Rg3 {[%emt 0:00:24]} 50. f4 {[%emt 0:01:23]} Ra3 {[%emt 0:00:45]} 51. Rxg6 {
[%emt 0:00:09]} Rxa4 {[%emt 0:00:25]} 52. Rf6 {[%emt 0:00:05]} Ra2 {[%emt 0:00:
29]} 53. g6 {[%emt 0:00:20]} Rg2 {[%emt 0:00:02]} 54. f5 {[%emt 0:00:08]} Kc4 {
[%emt 0:00:48]} 55. Re6 {[%emt 0:00:20]} Rg5 {[%emt 0:00:33]} 56. Re5 {[%emt 0:
01:58]} Kc3 {[%emt 0:00:22]} 57. Kb1 {[%emt 0:01:01]} Kd4 {[%emt 0:00:17]} 58.
Ra5 {[%emt 0:00:21]} Kc4 {[%emt 0:00:37]} 59. Ra8 {[%emt 0:01:04]} Rg1+ {
[%emt 0:00:59]} 60. Kc2 {[%emt 0:00:16]} Rg2+ {[%emt 0:00:03]} 61. Kc1 {
[%emt 0:00:09]} Kd5 {[%emt 0:00:36]} 62. f6 {[%emt 0:00:24]} 1-0

[Event "Moscow-Open 2021_A"]
[Site "Moscow, Russia"]
[Date "2021.02.23"]
[Round "4.5"]
[White "Rozum, Ivan"]
[Black "Rostovtsev, Dmitry"]
[Result "1-0"]
[ECO "E62"]
[WhiteElo "2546"]
[BlackElo "2037"]
[Annotator "zimin"]
[PlyCount "118"]
[EventDate "2021.??.??"]
[TimeControl "90+30"]
[WhiteClock "0:04:25"]
[BlackClock "0:12:11"]

{[%evp 0,47,33,32,17,-11,63,-26,25,8,25,16,24,1,33,33,50,35,43,48,71,52,47,38,
63,26,31,23,30,12,12,12,20,11,14,8,26,44,35,23,38,17,23,5,22,11,35,30,68,101]}
1. d4 {[%emt 0:00:00]} Nf6 {[%emt 0:00:00]} 2. c4 {[%emt 0:00:00]} g6 {[%emt 0:
00:00]} 3. g3 {[%emt 0:00:00]} Bg7 {[%emt 0:00:00]} 4. Bg2 {[%emt 0:00:00]} O-O
{[%emt 0:00:00]} 5. Nc3 {[%emt 0:00:00]} d6 {[%emt 0:00:00]} 6. Nf3 {[%emt 0:
00:00]} Nc6 {[%emt 0:00:00]} 7. O-O {[%emt 0:00:00]} e5 {[%emt 0:00:00]} 8. d5
{[%emt 0:00:00]} Ne7 {[%emt 0:00:00]} 9. e4 {[%emt 0:00:00]} Nd7 {[%emt 0:00:
00]} 10. Ne1 {[%emt 0:00:00]} f5 {[%emt 0:00:00]} 11. Nd3 {[%emt 0:00:00]} Nf6
{[%emt 0:00:00]} 12. Bg5 {[%emt 0:00:00]} h6 {[%emt 0:00:00]} 13. Bxf6 {
[%emt 0:00:00]} Bxf6 {[%emt 0:00:00]} 14. f4 {[%emt 0:00:00]} exf4 {[%emt 0:00:
00]} 15. Nxf4 {[%emt 0:00:00]} Be5 {[%emt 0:00:00]} 16. Qd2 {[%emt 0:00:00]} g5
{[%emt 0:00:00]} 17. Nd3 {[%emt 0:00:00]} Ng6 {[%emt 0:00:00]} 18. Nxe5 {
[%emt 0:00:00]} Nxe5 {[%emt 0:00:00]} 19. b3 {[%emt 0:00:00]} Qe7 {[%emt 0:00:
00]} 20. Rae1 {[%emt 0:00:00]} Qg7 {[%emt 0:00:00]} 21. exf5 {[%emt 0:00:00]}
Bxf5 {[%emt 0:00:00]} 22. Nb5 {[%emt 0:00:00]} a6 {[%emt 0:00:00]} 23. Nd4 {
[%emt 0:00:00]} Bd7 {[%emt 0:00:00]} 24. Ne6 {[%emt 0:00:00]} Bxe6 {[%emt 0:00:
00]} 25. dxe6 {[%emt 0:00:00]} Rab8 {[%emt 0:00:00]} 26. c5 {[%emt 0:00:00]}
Qe7 {[%emt 0:00:00]} 27. cxd6 {[%emt 0:00:00]} cxd6 {[%emt 0:00:00]} 28. Bd5 {
[%emt 0:00:00]} Rxf1+ {[%emt 0:00:00]} 29. Rxf1 {[%emt 0:00:00]} Kg7 {[%emt 0:
00:00]} 30. Qc3 {[%emt 0:00:00]} Rf8 {[%emt 0:00:00]} 31. Rxf8 {[%emt 0:00:00]}
Kxf8 {[%emt 0:00:00]} 32. Qc8+ {[%emt 0:00:00]} Kg7 {[%emt 0:00:00]} 33. Bxb7 {
[%emt 0:00:00]} a5 {[%emt 0:00:00]} 34. Kg2 {[%emt 0:00:00]} g4 {[%emt 0:00:00]
} 35. Bd5 {[%emt 0:00:00]} Qa7 {[%emt 0:00:00]} 36. Qc3 {[%emt 0:02:01]} Kf6 {
[%emt 0:00:00]} 37. Qd2 {[%emt 0:01:29]} Kg7 {[%emt 0:02:39]} 38. a3 {[%emt 0:
02:57]} Qc7 {[%emt 0:02:10]} 39. h3 {[%emt 0:00:17]} gxh3+ {[%emt 0:00:53]} 40.
Kxh3 {[%emt 0:00:02]} Qd8 {[%emt 0:01:13]} 41. Qf4 {[%emt 0:01:39]} Qe8 {
[%emt 0:03:33]} 42. Qf5 {[%emt 0:00:37]} Qg6 {[%emt 0:01:02]} 43. Qxg6+ {
[%emt 0:06:15]} Nxg6 {[%emt 0:00:03]} 44. b4 {[%emt 0:03:55]} axb4 {[%emt 0:00:
04]} 45. axb4 {[%emt 0:00:13]} Ne7 {[%emt 0:00:04]} 46. Bb3 {[%emt 0:03:18]}
Kf6 {[%emt 0:02:29]} 47. b5 {[%emt 0:00:04]} Nc8 {[%emt 0:00:24]} 48. Kg4 {
[%emt 0:00:24]} Nb6 {[%emt 0:00:21]} 49. Kh5 {[%emt 0:00:11]} d5 {[%emt 0:00:
06]} 50. Kxh6 {[%emt 0:00:06]} Kxe6 {[%emt 0:00:03]} 51. g4 {[%emt 0:00:11]}
Kd6 {[%emt 0:00:28]} 52. g5 {[%emt 0:00:18]} Nd7 {[%emt 0:00:03]} 53. Bd1 {
[%emt 0:01:43]} d4 {[%emt 0:01:48]} 54. Be2 {[%emt 0:00:07]} Kc5 {[%emt 0:00:
23]} 55. g6 {[%emt 0:00:11]} Nf6 {[%emt 0:00:03]} 56. g7 {[%emt 0:00:10]} Ng8+
{[%emt 0:00:15]} 57. Kh7 {[%emt 0:00:12]} Ne7 {[%emt 0:00:11]} 58. g8=Q {
[%emt 0:00:12]} Nxg8 {[%emt 0:00:04]} 59. Kxg8 {[%emt 0:00:03]} Kd5 {[%emt 0:
00:33]} 1-0

[Event "Moscow-Open 2021_A"]
[Site "Moscow, Russia"]
[Date "2021.02.23"]
[Round "4.6"]
[White "Manelyuk, Daniil"]
[Black "Bocharov, Ivan"]
[Result "0-1"]
[ECO "B90"]
[WhiteElo "2386"]
[BlackElo "2568"]
[Annotator "zimin"]
[PlyCount "92"]
[EventDate "2021.??.??"]
[TimeControl "90+30"]
[WhiteClock "0:01:26"]
[BlackClock "0:35:00"]

{[%evp 0,54,32,24,77,57,100,82,88,53,56,49,76,66,72,41,42,16,72,54,48,52,50,45,
45,28,32,24,40,24,24,27,30,13,13,13,23,32,32,11,28,-24,-26,6,6,-38,-20,-64,-64,
-177,-153,-191,-235,-235,-224,-220,-210]} 1. e4 {[%emt 0:00:00]} c5 {[%emt 0:
00:00]} 2. Nf3 {[%emt 0:00:00]} d6 {[%emt 0:00:00]} 3. d4 {[%emt 0:00:00]} cxd4
{[%emt 0:00:00]} 4. Nxd4 {[%emt 0:00:00]} Nf6 {[%emt 0:00:00]} 5. Nc3 {[%emt 0:
00:00]} a6 {[%emt 0:00:00]} 6. Be3 {[%emt 0:00:00]} e5 {[%emt 0:00:00]} 7. Nb3
{[%emt 0:00:00]} Be6 {[%emt 0:00:00]} 8. f3 {[%emt 0:00:00]} h5 {[%emt 0:00:00]
} 9. Nd5 {[%emt 0:00:00]} Bxd5 {[%emt 0:00:00]} 10. exd5 {[%emt 0:00:00]} Nbd7
{[%emt 0:00:00]} 11. Qd2 {[%emt 0:00:00]} g6 {[%emt 0:00:00]} 12. Na5 {[%emt 0:
00:00]} Qc7 {[%emt 0:00:00]} 13. c4 {[%emt 0:00:00]} Bg7 {[%emt 0:00:00]} 14.
Be2 {[%emt 0:00:00]} e4 {[%emt 0:00:00]} 15. Rc1 {[%emt 0:00:00]} exf3 {
[%emt 0:00:00]} 16. Bxf3 {[%emt 0:00:00]} O-O {[%emt 0:00:00]} 17. O-O {
[%emt 0:00:00]} Rfe8 {[%emt 0:00:00]} 18. b4 {[%emt 0:00:00]} Ne5 {[%emt 0:00:
00]} 19. Bd4 {[%emt 0:00:00]} Rad8 {[%emt 0:00:00]} 20. Rce1 {[%emt 0:00:00]}
Nfd7 {[%emt 0:00:00]} 21. Be2 {[%emt 0:00:00]} f5 {[%emt 0:00:00]} 22. Qb2 {
[%emt 0:00:00]} Nf6 {[%emt 0:00:00]} 23. Bd1 {[%emt 0:00:00]} Ne4 {[%emt 0:00:
00]} 24. Re3 {[%emt 0:00:00]} b6 {[%emt 0:00:00]} 25. Nb3 {[%emt 0:00:34]} Nxc4
{[%emt 0:00:00]} 26. Qc2 {[%emt 0:00:29]} Rc8 {[%emt 0:00:00]} 27. Ree1 {
[%emt 0:01:50]} b5 {[%emt 0:00:00]} 28. Rf4 {[%emt 0:06:07]} Bxd4+ {[%emt 0:00:
00]} 29. Nxd4 {[%emt 0:00:10]} Qa7 {[%emt 0:00:00]} 30. Rfxe4 {[%emt 0:02:13]}
fxe4 {[%emt 0:00:00]} 31. Rxe4 {[%emt 0:00:30]} Rxe4 {[%emt 0:00:00]} 32. Qxe4
{[%emt 0:00:05]} Ne5 {[%emt 0:00:00]} 33. Be2 {[%emt 0:01:04]} Rc1+ {[%emt 0:
00:00]} 34. Kf2 {[%emt 0:00:08]} Qf7+ {[%emt 0:00:00]} 35. Bf3 {[%emt 0:00:34]}
Rc4 {[%emt 0:00:00]} 36. Ke3 {[%emt 0:01:08]} Rxb4 {[%emt 0:00:00]} 37. Be2 {
[%emt 0:00:53]} Qa7 {[%emt 0:00:00]} 38. a3 {[%emt 0:02:31]} Ra4 {[%emt 0:00:
00]} 39. Bd1 {[%emt 0:00:55]} Rxa3+ {[%emt 0:00:00]} 40. Ke2 {[%emt 0:00:44]}
Ra2+ {[%emt 0:00:00]} 41. Bc2 {[%emt 0:01:05]} Qc5 {[%emt 0:00:00]} 42. Ke3 {
[%emt 0:00:37]} Qc3+ {[%emt 0:00:00]} 43. Kf4 {[%emt 0:00:10]} Qd2+ {[%emt 0:
00:00]} 44. Kg3 {[%emt 0:00:07]} Ra3+ {[%emt 0:00:00]} 45. Nf3 {[%emt 0:00:31]}
Re3 {[%emt 0:00:00]} 46. Qf4 {[%emt 0:00:39]} Rxf3+ {[%emt 0:00:00]} 0-1

[Event "Moscow-Open 2021_A"]
[Site "Moscow, Russia"]
[Date "2021.02.24"]
[Round "5.1"]
[White "Stupak, Kirill"]
[Black "Makarian, Rudik"]
[Result "1/2-1/2"]
[ECO "E46"]
[WhiteElo "2492"]
[BlackElo "2458"]
[Annotator "zimin"]
[PlyCount "83"]
[EventDate "2021.??.??"]
[TimeControl "90+30"]
[WhiteClock "0:02:31"]
[BlackClock "0:06:55"]

{[%evp 0,46,24,23,34,-19,-10,-19,0,-30,-26,-17,-20,-36,-13,-48,-22,-18,12,12,
40,55,62,56,59,54,66,54,58,37,91,81,85,72,82,96,100,87,73,75,44,24,51,64,83,75,
84,84,67]} 1. d4 {[%emt 0:00:00]} Nf6 {[%emt 0:00:00]} 2. c4 {[%emt 0:00:00]}
e6 {[%emt 0:00:00]} 3. Nc3 {[%emt 0:00:00]} Bb4 {[%emt 0:00:00]} 4. g3 {
[%emt 0:00:00]} O-O {[%emt 0:00:00]} 5. Bg2 {[%emt 0:00:00]} d5 {[%emt 0:00:00]
} 6. cxd5 {[%emt 0:00:00]} exd5 {[%emt 0:00:00]} 7. e3 {[%emt 0:00:00]} c6 {
[%emt 0:00:00]} 8. Nge2 {[%emt 0:00:00]} Bd6 {[%emt 0:00:00]} 9. O-O {[%emt 0:
00:00]} Nbd7 {[%emt 0:00:00]} 10. f3 {[%emt 0:00:00]} c5 {[%emt 0:00:00]} 11.
dxc5 {[%emt 0:00:00]} Bxc5 {[%emt 0:00:00]} 12. Nxd5 {[%emt 0:00:00]} Nxd5 {
[%emt 0:00:00]} 13. Qxd5 {[%emt 0:00:00]} Re8 {[%emt 0:00:00]} 14. Nd4 {
[%emt 0:00:00]} Re5 {[%emt 0:00:00]} 15. Qb3 {[%emt 0:00:00]} Nf6 {[%emt 0:00:
00]} 16. Rd1 {[%emt 0:00:00]} Rd5 {[%emt 0:00:00]} 17. Bd2 {[%emt 0:00:00]}
Bxd4 {[%emt 0:00:00]} 18. exd4 {[%emt 0:00:00]} Be6 {[%emt 0:00:00]} 19. Be3 {
[%emt 0:00:00]} Ra5 {[%emt 0:00:00]} 20. Qb4 {[%emt 0:00:00]} Rxa2 {[%emt 0:00:
00]} 21. Rxa2 {[%emt 0:00:00]} Bxa2 {[%emt 0:00:00]} 22. Qxb7 {[%emt 0:00:00]}
Bd5 {[%emt 0:00:00]} 23. Qa6 {[%emt 0:00:00]} Rb8 {[%emt 0:00:00]} 24. Rd2 {
[%emt 0:00:00]} Qd7 {[%emt 0:00:00]} 25. Bg5 {[%emt 0:00:00]} Rb6 {[%emt 0:00:
25]} 26. Qe2 {[%emt 0:00:00]} h6 {[%emt 0:01:23]} 27. Bxf6 {[%emt 0:03:04]}
Rxf6 {[%emt 0:00:02]} 28. Qf1 {[%emt 0:01:10]} Qe7 {[%emt 0:01:19]} 29. Re2 {
[%emt 0:02:25]} Qb4 {[%emt 0:00:02]} 30. Qf2 {[%emt 0:03:44]} Rc6 {[%emt 0:01:
14]} 31. h4 {[%emt 0:00:01]} Rc4 {[%emt 0:02:17]} 32. Rd2 {[%emt 0:00:40]} Rc6
{[%emt 0:02:57]} 33. Qe3 {[%emt 0:01:42]} Re6 {[%emt 0:01:12]} 34. Qc3 {
[%emt 0:00:12]} Qxc3 {[%emt 0:00:51]} 35. bxc3 {[%emt 0:00:06]} Re1+ {[%emt 0:
00:02]} 36. Kf2 {[%emt 0:03:41]} Rc1 {[%emt 0:00:06]} 37. f4 {[%emt 0:01:01]}
Bxg2 {[%emt 0:00:05]} 38. Kxg2 {[%emt 0:00:03]} Rxc3 {[%emt 0:00:05]} 39. d5 {
[%emt 0:00:10]} Kf8 {[%emt 0:01:53]} 40. d6 {[%emt 0:00:23]} Ke8 {[%emt 0:00:
19]} 41. Ra2 {[%emt 0:00:01]} Rc6 {[%emt 0:00:53]} 42. Rxa7 {[%emt 0:01:36]}
1/2-1/2

[Event "Moscow-Open 2021_A"]
[Site "Moscow, Russia"]
[Date "2021.02.24"]
[Round "5.2"]
[White "Kukhmazov, Arsen"]
[Black "Afanasiev, Nikita"]
[Result "1/2-1/2"]
[ECO "D20"]
[WhiteElo "2442"]
[BlackElo "2519"]
[Annotator "zimin"]
[PlyCount "32"]
[EventDate "2021.??.??"]
[TimeControl "90+30"]
[WhiteClock "1:21:09"]
[BlackClock "1:34:42"]

{[%evp 0,32,42,29,23,-19,48,29,8,3,12,37,43,30,46,6,40,-3,5,5,-5,-46,-18,-4,
-25,-16,-13,-13,16,20,0,0,0,0,0]} 1. d4 {[%emt 0:00:00]} d5 {[%emt 0:00:00]} 2.
c4 {[%emt 0:00:00]} dxc4 {[%emt 0:00:00]} 3. e3 {[%emt 0:00:00]} e5 {[%emt 0:
00:00]} 4. Bxc4 {[%emt 0:00:00]} exd4 {[%emt 0:00:00]} 5. exd4 {[%emt 0:00:00]}
Nf6 {[%emt 0:00:00]} 6. Nc3 {[%emt 0:00:00]} Bd6 {[%emt 0:00:00]} 7. Nf3 {
[%emt 0:00:00]} Nc6 {[%emt 0:00:00]} 8. O-O {[%emt 0:00:00]} O-O {[%emt 0:00:
00]} 9. Bg5 {[%emt 0:00:00]} h6 {[%emt 0:00:00]} 10. Bh4 {[%emt 0:00:00]} Bg4 {
[%emt 0:00:00]} 11. h3 {[%emt 0:00:00]} Bxf3 {[%emt 0:00:00]} 12. Qxf3 {
[%emt 0:00:00]} Nxd4 {[%emt 0:00:00]} 13. Qxb7 {[%emt 0:00:00]} Rb8 {[%emt 0:
00:00]} 14. Qxa7 {[%emt 0:00:00]} Ra8 {[%emt 0:00:00]} 15. Qb7 {[%emt 0:00:00]}
Rb8 {[%emt 0:00:00]} 16. Qa7 {[%emt 0:00:00]} Ra8 {[%emt 0:00:00]} 1/2-1/2

[Event "Moscow-Open 2021_A"]
[Site "Moscow, Russia"]
[Date "2021.02.24"]
[Round "5.3"]
[White "Bocharov, Ivan"]
[Black "Maiorov, Nikita"]
[Result "1-0"]
[ECO "C95"]
[WhiteElo "2568"]
[BlackElo "2495"]
[Annotator "zimin"]
[PlyCount "60"]
[EventDate "2021.??.??"]
[TimeControl "90+30"]
[WhiteClock "0:47:46"]
[BlackClock "0:23:01"]

{[%evp 0,40,29,24,36,24,24,8,4,-23,1,3,-3,-37,-15,5,10,-31,-22,-9,23,-7,-3,-1,
-7,-23,9,12,57,43,44,27,52,31,23,21,59,8,4,-14,-1,-35,-16]} 1. e4 {[%emt 0:00:
00]} e5 {[%emt 0:00:00]} 2. Nf3 {[%emt 0:00:00]} Nc6 {[%emt 0:00:00]} 3. Bb5 {
[%emt 0:00:00]} a6 {[%emt 0:00:00]} 4. Ba4 {[%emt 0:00:00]} Nf6 {[%emt 0:00:00]
} 5. O-O {[%emt 0:00:00]} Be7 {[%emt 0:00:00]} 6. Re1 {[%emt 0:00:00]} b5 {
[%emt 0:00:00]} 7. Bb3 {[%emt 0:00:00]} d6 {[%emt 0:00:00]} 8. c3 {[%emt 0:00:
00]} O-O {[%emt 0:00:00]} 9. h3 {[%emt 0:00:00]} Nb8 {[%emt 0:00:00]} 10. d4 {
[%emt 0:00:00]} Nbd7 {[%emt 0:00:00]} 11. Nbd2 {[%emt 0:00:00]} c5 {[%emt 0:00:
00]} 12. Nf1 {[%emt 0:00:00]} Re8 {[%emt 0:00:00]} 13. Ng3 {[%emt 0:00:00]} Bf8
{[%emt 0:00:00]} 14. d5 {[%emt 0:00:00]} c4 {[%emt 0:00:00]} 15. Bc2 {[%emt 0:
00:00]} Qc7 {[%emt 0:00:00]} 16. Bg5 {[%emt 0:00:00]} h6 {[%emt 0:00:00]} 17.
Be3 {[%emt 0:00:00]} Nc5 {[%emt 0:00:00]} 18. Nh2 {[%emt 0:00:00]} a5 {[%emt 0:
00:00]} 19. Qf3 {[%emt 0:00:00]} Be7 {[%emt 0:00:00]} 20. Nh5 {[%emt 0:00:00]}
Nxh5 {[%emt 0:00:00]} 21. Qxh5 {[%emt 0:00:00]} b4 {[%emt 0:00:00]} 22. Ng4 {
[%emt 0:00:00]} Bxg4 {[%emt 0:00:00]} 23. Qxg4 {[%emt 0:00:00]} Bg5 {[%emt 0:
00:00]} 24. Bxg5 {[%emt 0:01:56]} hxg5 {[%emt 0:00:00]} 25. Qxg5 {[%emt 0:00:
00]} b3 {[%emt 0:00:00]} 26. Bd1 {[%emt 0:00:00]} Nd3 {[%emt 0:00:00]} 27. Re2
{[%emt 0:00:00]} bxa2 {[%emt 0:00:00]} 28. Rxa2 {[%emt 0:00:00]} Reb8 {[%emt 0:
00:00]} 29. Rc2 {[%emt 0:00:00]} a4 {[%emt 0:00:00]} 30. Be2 {[%emt 0:17:32]}
a3 {[%emt 0:00:00]} 1-0

[Event "Moscow-Open 2021_A"]
[Site "Moscow, Russia"]
[Date "2021.02.24"]
[Round "5.4"]
[White "Zarubitski, Viachaslau"]
[Black "Rozum, Ivan"]
[Result "0-1"]
[ECO "B01"]
[WhiteElo "2446"]
[BlackElo "2546"]
[Annotator "zimin"]
[PlyCount "68"]
[EventDate "2021.??.??"]
[TimeControl "90+30"]
[WhiteClock "0:01:05"]
[BlackClock "0:34:23"]

{[%evp 0,51,29,36,51,54,49,49,71,55,55,56,93,86,77,33,33,50,34,63,66,68,42,43,
69,36,27,27,34,-63,-40,-82,-118,-118,-78,-116,-121,-137,-142,-140,-141,-194,
-188,-199,-190,-212,-188,-229,-218,-292,-178,-188,-223,-227]} 1. e4 {[%emt 0:
00:00]} d5 {[%emt 0:00:00]} 2. exd5 {[%emt 0:00:00]} Qxd5 {[%emt 0:00:00]} 3.
Nc3 {[%emt 0:00:00]} Qd6 {[%emt 0:00:00]} 4. d4 {[%emt 0:00:00]} Nf6 {[%emt 0:
00:00]} 5. Nf3 {[%emt 0:00:00]} c6 {[%emt 0:00:00]} 6. h3 {[%emt 0:00:00]} Bf5
{[%emt 0:00:00]} 7. Ne5 {[%emt 0:00:00]} Nbd7 {[%emt 0:00:00]} 8. Nc4 {[%emt 0:
00:00]} Qc7 {[%emt 0:00:00]} 9. Qf3 {[%emt 0:00:00]} e6 {[%emt 0:00:00]} 10.
Bf4 {[%emt 0:00:00]} Qd8 {[%emt 0:00:00]} 11. O-O-O {[%emt 0:00:00]} Nb6 {
[%emt 0:00:00]} 12. Nxb6 {[%emt 0:00:00]} axb6 {[%emt 0:00:00]} 13. g4 {
[%emt 0:00:00]} Bg6 {[%emt 0:00:00]} 14. d5 {[%emt 0:00:00]} Nxd5 {[%emt 0:00:
00]} 15. Bb5 {[%emt 0:00:00]} Bd6 {[%emt 0:00:00]} 16. Nxd5 {[%emt 0:00:00]}
exd5 {[%emt 0:00:00]} 17. Bxd6 {[%emt 0:06:16]} Qxd6 {[%emt 0:00:00]} 18. Rhe1+
{[%emt 0:01:20]} Kf8 {[%emt 0:00:00]} 19. Bc4 {[%emt 0:00:23]} Qc5 {[%emt 0:00:
00]} 20. Bb3 {[%emt 0:00:58]} Rxa2 {[%emt 0:00:00]} 21. Qf4 {[%emt 0:01:21]}
Ra8 {[%emt 0:00:00]} 22. Re3 {[%emt 0:00:28]} h5 {[%emt 0:00:00]} 23. Rde1 {
[%emt 0:00:16]} d4 {[%emt 0:00:00]} 24. Re4 {[%emt 0:01:49]} hxg4 {[%emt 0:00:
00]} 25. Rxd4 {[%emt 0:00:20]} Rxh3 {[%emt 0:00:00]} 26. Ra4 {[%emt 0:00:21]}
Rd8 {[%emt 0:00:00]} 27. Qc7 {[%emt 0:00:57]} Qg5+ {[%emt 0:00:00]} 28. Rf4 {
[%emt 0:00:28]} Rf3 {[%emt 0:00:00]} 29. Ree4 {[%emt 0:00:25]} Rxf2 {[%emt 0:
00:00]} 30. Kb1 {[%emt 0:00:33]} Rxf4 {[%emt 0:00:00]} 31. Rxf4 {[%emt 0:00:10]
} Qe7 {[%emt 0:00:00]} 32. Qxb6 {[%emt 0:00:04]} g3 {[%emt 0:00:00]} 33. Qg1 {
[%emt 0:00:14]} Qg5 {[%emt 0:00:00]} 34. Rf3 {[%emt 0:01:02]} g2 {[%emt 0:00:
00]} 0-1

[Event "Moscow-Open 2021_A"]
[Site "Moscow, Russia"]
[Date "2021.02.24"]
[Round "5.5"]
[White "Iljiushenok, Ilia"]
[Black "Maltsevskaya, Aleksandra"]
[Result "0-1"]
[ECO "A47"]
[WhiteElo "2534"]
[BlackElo "2327"]
[Annotator "zimin"]
[PlyCount "94"]
[EventDate "2021.??.??"]
[TimeControl "90+30"]
[WhiteClock "0:20:41"]
[BlackClock "0:44:28"]

{[%evp 0,38,29,23,30,23,49,45,50,28,59,43,40,22,18,15,38,31,53,12,9,21,21,9,27,
22,49,44,86,33,-23,-26,-26,-71,-103,-96,-95,-95,-101,-99,-99]} 1. d4 {[%emt 0:
00:00]} Nf6 {[%emt 0:00:00]} 2. Nf3 {[%emt 0:00:00]} b6 {[%emt 0:00:00]} 3. Bf4
{[%emt 0:00:00]} Bb7 {[%emt 0:00:00]} 4. h3 {[%emt 0:00:00]} g6 {[%emt 0:00:00]
} 5. e3 {[%emt 0:00:00]} Bg7 {[%emt 0:00:00]} 6. Be2 {[%emt 0:00:00]} O-O {
[%emt 0:00:00]} 7. O-O {[%emt 0:00:00]} Ne4 {[%emt 0:00:00]} 8. a4 {[%emt 0:00:
00]} a6 {[%emt 0:00:00]} 9. c4 {[%emt 0:00:00]} d6 {[%emt 0:00:00]} 10. a5 {
[%emt 0:00:00]} c5 {[%emt 0:00:00]} 11. Nbd2 {[%emt 0:00:00]} Nxd2 {[%emt 0:00:
00]} 12. Qxd2 {[%emt 0:00:00]} Nc6 {[%emt 0:00:00]} 13. axb6 {[%emt 0:00:00]}
e5 {[%emt 0:00:00]} 14. Bg5 {[%emt 0:00:00]} f6 {[%emt 0:00:00]} 15. Bh4 {
[%emt 0:00:00]} e4 {[%emt 0:00:00]} 16. d5 {[%emt 0:00:00]} Ne7 {[%emt 0:00:00]
} 17. Nh2 {[%emt 0:00:00]} Nf5 {[%emt 0:00:00]} 18. Bg3 {[%emt 0:00:00]} Nxg3 {
[%emt 0:00:00]} 19. fxg3 {[%emt 0:00:00]} Qxb6 {[%emt 0:00:00]} 20. g4 {
[%emt 0:00:00]} Bc8 {[%emt 0:00:00]} 21. Rab1 {[%emt 0:00:00]} Rb8 {[%emt 0:00:
00]} 22. Rf2 {[%emt 0:00:00]} Qb3 {[%emt 0:00:00]} 23. Qc1 {[%emt 0:00:00]} Rb4
{[%emt 0:00:00]} 24. Nf1 {[%emt 0:00:00]} f5 {[%emt 0:00:00]} 25. gxf5 {
[%emt 0:00:00]} gxf5 {[%emt 0:00:00]} 26. Ng3 {[%emt 0:00:00]} Bxb2 {[%emt 0:
00:00]} 27. Qd2 {[%emt 0:00:00]} Bc3 {[%emt 0:00:00]} 28. Rxb3 {[%emt 0:00:00]}
Bxd2 {[%emt 0:00:00]} 29. Ra3 {[%emt 0:00:00]} Be1 {[%emt 0:00:00]} 30. Nh5 {
[%emt 0:00:00]} Bxf2+ {[%emt 0:00:00]} 31. Kxf2 {[%emt 0:00:00]} Kf7 {[%emt 0:
00:00]} 32. Ra2 {[%emt 0:00:00]} Rb6 {[%emt 0:00:00]} 33. Nf4 {[%emt 0:00:00]}
Bd7 {[%emt 0:00:00]} 34. g4 {[%emt 0:00:00]} Ra8 {[%emt 0:00:00]} 35. gxf5 {
[%emt 0:00:00]} a5 {[%emt 0:00:00]} 36. Ne6 {[%emt 0:00:00]} Kf6 {[%emt 0:00:
00]} 37. Kg3 {[%emt 0:00:00]} a4 {[%emt 0:00:00]} 38. Nc7 {[%emt 0:00:15]} Ra7
{[%emt 0:00:00]} 39. Nb5 {[%emt 0:00:08]} Bxb5 {[%emt 0:00:00]} 40. cxb5 {
[%emt 0:00:02]} Kxf5 {[%emt 0:00:00]} 41. Bg4+ {[%emt 0:00:03]} Kg6 {[%emt 0:
00:00]} 42. Kh4 {[%emt 0:00:33]} Rxb5 {[%emt 0:00:00]} 43. Be6 {[%emt 0:00:10]}
a3 {[%emt 0:00:00]} 44. Rg2+ {[%emt 0:00:14]} Kh6 {[%emt 0:00:00]} 45. Rg5 {
[%emt 0:00:05]} Rg7 {[%emt 0:00:00]} 46. Rf5 {[%emt 0:02:45]} a2 {[%emt 0:00:
00]} 47. Bf7 {[%emt 0:00:04]} Rxf7 {[%emt 0:00:00]} 0-1